[Event "Schack-SM 2024: Sverigemastarklassen"]
[Site "Fortnox Arena, Hejaregatan 5, Vaxjo, Sweden"]
[Date "2024.07.05"]
[Round "7.4"]
[White "Blomqvist, Erik"]
[Black "Seo, Jung Min"]
[Result "1/2-1/2"]
[TimeControl "90 minutes for 40 moves + 30 minutes for the rest of the game + 30 seconds per move from move one."]
[WhiteTitle "GM"]
[BlackTitle "IM"]
[WhiteElo "2527"]
[BlackElo "2442"]

1. e4 {[%clk 01:30:01]} {[%emt 00:00:57]} c5 {[%clk 01:30:59]} {[%emt
00:00:03]} 2. Nf3 {[%clk 01:30:10]} {[%emt 00:00:19]} d6 {[%clk 01:31:28]}
{[%emt 00:00:03]} 3. d4 {[%clk 01:30:32]} {[%emt 00:00:07]} cxd4 {[%clk
01:31:56]} {[%emt 00:00:01]} 4. Nxd4 {[%clk 01:30:55]} {[%emt 00:00:06]} Nf6
{[%clk 01:32:25]} {[%emt 00:00:02]} 5. Nc3 {[%clk 01:31:15]} {[%emt 00:00:10]}
a6 {[%clk 01:32:54]} {[%emt 00:00:01]} 6. a4 {[%clk 01:31:32]} {[%emt
00:00:12]} g6 {[%clk 01:26:46]} {[%emt 00:06:39]} 7. Be2 {[%clk 01:30:32]}
{[%emt 00:01:30]} Bg7 {[%clk 01:25:51]} {[%emt 00:01:25]} 8. a5 {[%clk
01:30:36]} {[%emt 00:00:27]} O-O {[%clk 01:25:51]} {[%emt 00:00:30]} 9. O-O
{[%clk 01:30:33]} {[%emt 00:00:31]} Nc6 {[%clk 01:15:29]} {[%emt 00:10:52]} 10.
Nxc6 {[%clk 01:30:47]} {[%emt 00:00:16]} bxc6 {[%clk 01:15:44]} {[%emt
00:00:17]} 11. Be3 {[%clk 01:31:11]} {[%emt 00:00:04]} Nd7 {[%clk 01:13:09]}
{[%emt 00:03:06]} 12. Qd2 {[%clk 01:27:27]} {[%emt 00:04:13]} c5 {[%clk
01:04:50]} {[%emt 00:08:49]} 13. Bh6 {[%clk 01:26:25]} {[%emt 00:01:33]} Bb7
{[%clk 01:01:06]} {[%emt 00:04:14]} 14. Ra3 {[%clk 01:15:02]} {[%emt 00:11:52]}
Nf6 {[%clk 00:57:31]} {[%emt 00:04:05]} 15. Bxg7 {[%clk 01:07:01]} {[%emt
00:08:31]} Kxg7 {[%clk 00:57:19]} {[%emt 00:00:42]} 16. Qe3 {[%clk 01:04:21]}
{[%emt 00:03:10]} Qc7 {[%clk 00:56:19]} {[%emt 00:01:28]} 17. Rd1 {[%clk
01:00:27]} {[%emt 00:04:27]} e6 {[%clk 00:52:57]} {[%emt 00:03:51]} 18. Rb3
{[%clk 00:57:31]} {[%emt 00:03:26]} d5 {[%clk 00:48:28]} {[%emt 00:05:00]} 19.
Qg3 {[%clk 00:43:57]} {[%emt 00:14:03]} Rfc8 {[%clk 00:31:48]} {[%emt
00:17:11]} 20. exd5 {[%clk 00:38:49]} {[%emt 00:05:37]} Bxd5 {[%clk 00:23:47]}
{[%emt 00:08:32]} 21. Rb6 {[%clk 00:27:07]} {[%emt 00:12:11]} c4 {[%clk
00:20:13]} {[%emt 00:04:06]} 22. Qe3 {[%clk 00:17:45]} {[%emt 00:09:51]} Kg8
{[%clk 00:18:05]} {[%emt 00:02:38]} 23. h4 {[%clk 00:12:42]} {[%emt 00:05:33]}
h5 {[%clk 00:10:45]} {[%emt 00:07:50]} 24. Qg5 {[%clk 00:11:50]} {[%emt
00:01:22]} Qd8 {[%clk 00:10:24]} {[%emt 00:00:51]} 25. Rd4 {[%clk 00:07:54]}
{[%emt 00:04:26]} Rc5 {[%clk 00:10:00]} {[%emt 00:00:55]} 26. Nxd5 {[%clk
00:04:44]} {[%emt 00:03:39]} Nxd5 {[%clk 00:07:55]} {[%emt 00:02:36]} 27. Rxa6
{[%clk 00:03:49]} {[%emt 00:01:24]} Qc8 {[%clk 00:06:14]} {[%emt 00:02:12]} 28.
Rxa8 {[%clk 00:03:19]} {[%emt 00:00:59]} Qxa8 {[%emt 00:00:02]} 29. Bxh5 {[%clk
00:02:39]} {[%emt 00:01:09]} Qxa5 {[%clk 00:05:40]} {[%emt 00:01:34]} 30. Bxg6
{[%clk 00:02:37]} {[%emt 00:00:33]} Qe1+ {[%clk 00:05:36]} {[%emt 00:00:34]} 31.
Kh2 {[%clk 00:03:06]} fxg6 {[%clk 00:04:15]} {[%emt 00:01:53]} 32. Qxg6+ {[%emt
00:01:13]} Kf8 {[%emt 00:00:02]} 33. Re4 {[%clk 00:00:52]} {[%emt 00:01:57]}
Qxf2 {[%clk 00:05:13]} {[%emt 00:00:03]} 34. Rxe6 {[%clk 00:00:58]} {[%emt
00:00:23]} Qxh4+ {[%clk 00:03:18]} {[%emt 00:02:27]} 35. Kg1 {[%clk 00:01:27]}
Qd4+ {[%clk 00:03:42]} {[%emt 00:00:05]} 36. Kh2 {[%clk 00:00:42]} {[%emt
00:01:14]} Qh4+ {[%clk 00:03:34]} {[%emt 00:00:39]} 37. Kg1 {[%clk 00:01:07]}
{[%emt 00:00:06]} Qd4+ {[%clk 00:03:58]} {[%emt 00:00:06]} 38. Kf1 {[%clk
00:00:37]} {[%emt 00:01:00]} Qf4+ {[%clk 00:01:02]} {[%emt 00:03:26]} 39. Kg1
{[%clk 00:00:44]} {[%emt 00:00:23]} Qd4+ {[%clk 00:01:24]} {[%emt 00:00:07]} 40.
Kh2 {[%clk 00:01:10]} {[%emt 00:00:05]} Qh4+ {[%clk 00:01:48]} {[%emt
00:00:06]} 41. Kg1 {[%clk 00:01:37]} {[%emt 00:00:03]} 1/2-1/2

[Event "Schack-SM 2024: Sverigemastarklassen"]
[Site "Fortnox Arena, Hejaregatan 5, Vaxjo, Sweden"]
[Date "2024.07.05"]
[Round "7.5"]
[White "Lokander, Martin"]
[Black "Hector, Jonny"]
[Result "1-0"]
[TimeControl "90 minutes for 40 moves + 30 minutes for the rest of the game + 30 seconds per move from move one."]
[WhiteTitle "IM"]
[BlackTitle "GM"]
[WhiteElo "2474"]
[BlackElo "2410"]

1. d4 {[%clk 01:30:56]} {[%emt 00:00:03]} d5 {[%clk 01:30:46]} {[%emt
00:00:13]} 2. c4 {[%clk 01:31:21]} {[%emt 00:00:06]} c6 {[%clk 01:31:10]}
{[%emt 00:00:06]} 3. cxd5 {[%clk 01:31:25]} {[%emt 00:00:27]} cxd5 {[%clk
01:31:29]} {[%emt 00:00:09]} 4. Nc3 {[%clk 01:31:45]} {[%emt 00:00:10]} e5
{[%clk 01:30:46]} {[%emt 00:01:12]} 5. dxe5 {[%clk 01:30:50]} {[%emt 00:01:26]}
d4 {[%clk 01:31:00]} {[%emt 00:00:13]} 6. Ne4 {[%clk 01:31:05]} {[%emt
00:00:17]} Qa5+ {[%clk 01:30:40]} {[%emt 00:00:50]} 7. Nd2 {[%clk 01:29:17]}
{[%emt 00:02:19]} Nc6 {[%clk 01:30:32]} {[%emt 00:00:38]} 8. Ngf3 {[%clk
01:29:25]} {[%emt 00:00:21]} h5 {[%clk 01:30:37]} {[%emt 00:00:25]} 9. g3
{[%clk 01:23:21]} {[%emt 00:06:35]} h4 {[%clk 01:30:44]} {[%emt 00:00:22]} 10.
Nxh4 {[%clk 01:20:32]} {[%emt 00:03:20]} g5 {[%clk 01:30:29]} {[%emt 00:00:45]}
11. Nhf3 {[%clk 01:20:00]} {[%emt 00:01:04]} g4 {[%clk 01:30:47]} {[%emt
00:00:11]} 12. Nh4 {[%clk 01:19:03]} {[%emt 00:01:27]} Be7 {[%clk 01:30:53]}
{[%emt 00:00:22]} 13. Bg2 {[%clk 01:17:10]} {[%emt 00:02:24]} Bxh4 {[%clk
01:30:06]} {[%emt 00:01:17]} 14. gxh4 {[%clk 01:17:28]} {[%emt 00:00:12]} Nge7
{[%clk 01:29:16]} {[%emt 00:01:20]} 15. O-O {[%clk 01:17:06]} {[%emt 00:00:52]}
Qxe5 {[%clk 01:26:51]} {[%emt 00:02:54]} 16. Nc4 {[%clk 01:16:53]} {[%emt
00:00:44]} Qe6 {[%clk 00:57:19]} {[%emt 00:30:01]} 17. Qd3 {[%clk 01:05:09]}
{[%emt 00:12:15]} Rxh4 {[%clk 00:50:26]} {[%emt 00:07:21]} 18. Bf4 {[%clk
01:03:18]} {[%emt 00:02:22]} Qf6 {[%clk 00:41:47]} {[%emt 00:09:08]} 19. Bg3
{[%clk 01:02:00]} {[%emt 00:01:49]} Rh6 {[%clk 00:41:06]} {[%emt 00:01:10]} 20.
e4 {[%clk 00:56:48]} {[%emt 00:05:44]} Be6 {[%clk 00:38:01]} {[%emt 00:03:35]}
21. f4 {[%clk 00:54:28]} {[%emt 00:02:50]} gxf3 {[%clk 00:32:15]} {[%emt
00:06:17]} 22. Nd6+ {[%clk 00:53:47]} {[%emt 00:01:11]} Kf8 {[%clk 00:32:18]}
{[%emt 00:00:27]} 23. Rxf3 {[%clk 00:53:55]} {[%emt 00:00:22]} Qg7 {[%clk
00:26:35]} {[%emt 00:06:11]} 24. Qb5 {[%clk 00:47:06]} {[%emt 00:07:21]} a6
{[%clk 00:23:30]} {[%emt 00:03:34]} 25. Qxb7 {[%clk 00:45:42]} {[%emt
00:01:55]} Rb8 {[%clk 00:23:02]} {[%emt 00:00:57]} 26. Qc7 {[%clk 00:45:30]}
{[%emt 00:00:44]} Rxb2 {[%clk 00:21:40]} {[%emt 00:01:51]} 27. Nf5 {[%clk
00:26:05]} {[%emt 00:19:55]} Bxf5 {[%clk 00:20:28]} {[%emt 00:01:41]} 28. exf5
{[%clk 00:26:27]} {[%emt 00:00:11]} d3 {[%clk 00:17:19]} {[%emt 00:03:38]} 29.
Rd1 {[%clk 00:26:07]} {[%emt 00:00:50]} Qd4+ {[%clk 00:16:17]} {[%emt
00:01:30]} 30. Kh1 {[%clk 00:20:27]} {[%emt 00:06:12]} d2 {[%clk 00:15:27]}
{[%emt 00:01:20]} 31. Rf4 {[%clk 00:19:33]} {[%emt 00:01:23]} Qd6 {[%clk
00:13:07]} {[%emt 00:02:50]} 32. Qxd6 {[%clk 00:15:06]} {[%emt 00:04:57]} Rxd6
{[%clk 00:13:34]} {[%emt 00:00:04]} 33. f6 {[%clk 00:15:31]} {[%emt 00:00:04]}
Nd5 {[%clk 00:03:47]} {[%emt 00:10:16]} 34. Rd4 {[%clk 00:12:49]} {[%emt
00:03:13]} Nxd4 {[%clk 00:02:39]} {[%emt 00:01:38]} 35. Bxd6+ {[%clk 00:13:16]}
{[%emt 00:00:03]} Kg8 {[%clk 00:02:43]} {[%emt 00:00:25]} 36. Bxd5 {[%clk
00:13:31]} {[%emt 00:00:16]} Nb5 {[%clk 00:01:09]} {[%emt 00:02:04]} 37. Be5
{[%clk 00:13:00]} {[%emt 00:01:02]} Rc2 {[%clk 00:01:25]} {[%emt 00:00:14]} 38.
Bb3 {[%clk 00:12:49]} {[%emt 00:00:43]} Rc5 {[%clk 00:01:38]} {[%emt 00:00:14]}
39. Bb2 {[%clk 00:12:51]} {[%emt 00:00:30]} 1-0

[Event "Schack-SM 2024: Sverigemastarklassen"]
[Site "Fortnox Arena, Hejaregatan 5, Vaxjo, Sweden"]
[Date "2024.07.04"]
[Round "6.1"]
[White "Hillarp Persson, Tiger"]
[Black "Sivuk, Vitaly"]
[Result "1/2-1/2"]
[TimeControl "90 minutes for 40 moves + 30 minutes for the rest of the game + 30 seconds per move from move one."]
[WhiteTitle "GM"]
[BlackTitle "GM"]
[WhiteElo "2455"]
[BlackElo "2569"]

1. d4 {[%clk 01:30:46]} {[%emt 00:00:08]} Nf6 {[%clk 01:30:44]} {[%emt
00:00:15]} 2. Nf3 {[%clk 01:31:06]} {[%emt 00:00:11]} g6 {[%clk 01:31:02]}
{[%emt 00:00:12]} 3. Nc3 {[%clk 01:31:24]} {[%emt 00:00:13]} d5 {[%clk
01:30:38]} {[%emt 00:00:53]} 4. Bf4 {[%clk 01:31:47]} {[%emt 00:00:08]} c6
{[%clk 01:30:17]} {[%emt 00:00:50]} 5. e3 {[%clk 01:28:20]} {[%emt 00:03:59]}
Bg7 {[%clk 01:27:01]} {[%emt 00:03:44]} 6. h4 {[%clk 01:26:22]} {[%emt
00:02:28]} Bg4 {[%clk 01:25:28]} {[%emt 00:02:04]} 7. Be2 {[%clk 01:23:27]}
{[%emt 00:03:25]} Qb6 {[%clk 01:23:09]} {[%emt 00:02:49]} 8. Qd2 {[%clk
01:12:37]} {[%emt 00:11:20]} Nbd7 {[%clk 01:21:02]} {[%emt 00:02:37]} 9. O-O-O
{[%clk 01:08:28]} {[%emt 00:04:39]} h5 {[%clk 01:10:06]} {[%emt 00:11:25]} 10.
Ne5 {[%clk 00:57:09]} {[%emt 00:11:51]} Bxe2 {[%clk 01:10:26]} {[%emt
00:00:08]} 11. Qxe2 {[%clk 00:57:32]} {[%emt 00:00:08]} Nxe5 {[%clk 01:10:22]}
{[%emt 00:00:34]} 12. Bxe5 {[%clk 00:57:50]} {[%emt 00:00:12]} Kf8 {[%clk
00:59:28]} {[%emt 00:11:23]} 13. Kb1 {[%clk 00:50:39]} {[%emt 00:07:42]} Qa5
{[%clk 00:54:59]} {[%emt 00:04:59]} 14. e4 {[%clk 00:47:11]} {[%emt 00:03:57]}
e6 {[%clk 00:40:11]} {[%emt 00:15:18]} 15. Rh3 {[%clk 00:16:44]} {[%emt
00:30:58]} Nxe4 {[%clk 00:35:41]} {[%emt 00:05:01]} 16. Nxe4 {[%clk 00:17:02]}
{[%emt 00:00:11]} dxe4 {[%clk 00:36:08]} {[%emt 00:00:03]} 17. Ra3 {[%clk
00:16:28]} {[%emt 00:01:04]} Qd8 {[%clk 00:36:05]} {[%emt 00:00:34]} 18. Qxe4
{[%clk 00:16:41]} {[%emt 00:00:15]} Qd5 {[%clk 00:33:27]} {[%emt 00:03:08]} 19.
Qxd5 {[%clk 00:12:50]} {[%emt 00:04:22]} cxd5 {[%clk 00:26:23]} {[%emt
00:07:34]} 20. Rc3 {[%clk 00:08:33]} {[%emt 00:04:46]} Bxe5 {[%clk 00:26:14]}
{[%emt 00:00:40]} 21. dxe5 {[%clk 00:08:57]} {[%emt 00:00:06]} Re8 {[%clk
00:26:33]} {[%emt 00:00:11]} 22. Rd4 {[%clk 00:08:19]} {[%emt 00:01:08]} Re7
{[%clk 00:26:21]} {[%emt 00:00:42]} 23. Ra4 {[%clk 00:07:27]} {[%emt 00:01:22]}
a6 {[%clk 00:23:47]} {[%emt 00:03:03]} 24. Rb4 {[%clk 00:07:19]} {[%emt
00:00:39]} Kg7 {[%clk 00:22:27]} {[%emt 00:01:49]} 25. Rb6 {[%clk 00:07:40]}
{[%emt 00:00:10]} Rd8 {[%clk 00:21:45]} {[%emt 00:01:11]} 26. Kc1 {[%clk
00:07:57]} {[%emt 00:00:15]} Rdd7 {[%clk 00:16:56]} {[%emt 00:05:18]} 27. Kd2
{[%clk 00:08:08]} {[%emt 00:00:19]} Rc7 {[%clk 00:16:48]} {[%emt 00:00:37]} 28.
Rxc7 {[%clk 00:07:32]} {[%emt 00:01:07]} Rxc7 {[%clk 00:17:13]} {[%emt
00:00:04]} 29. b3 {[%clk 00:06:50]} {[%emt 00:01:13]} g5 {[%clk 00:08:52]}
{[%emt 00:08:51]} 30. hxg5 {[%clk 00:06:44]} {[%emt 00:00:37]} Kg6 {[%clk
00:09:03]} {[%emt 00:00:16]} 31. c3 {[%clk 00:01:05]} {[%emt 00:06:11]} Kxg5
{[%clk 00:04:15]} {[%emt 00:05:17]} 32. Kd3 {[%clk 00:01:28]} {[%emt 00:00:08]}
Kf5 {[%clk 00:04:29]} {[%emt 00:00:15]} 33. Kd4 {[%clk 00:01:48]} {[%emt
00:00:11]} h4 {[%clk 00:04:09]} {[%emt 00:00:50]} 34. Rd6 {[%clk 00:00:36]}
{[%emt 00:01:43]} f6 {[%clk 00:04:09]} {[%emt 00:00:30]} 35. exf6 {[%clk
00:00:59]} {[%emt 00:00:08]} Kxf6 {[%clk 00:04:36]} {[%emt 00:00:03]} 36. Rd8
{[%clk 00:01:12]} {[%emt 00:00:17]} Rg7 {[%clk 00:04:45]} {[%emt 00:00:20]} 37.
Rf8+ {[%clk 00:00:36]} {[%emt 00:01:07]} Ke7 {[%clk 00:05:07]} {[%emt
00:00:08]} 38. Rh8 {[%clk 00:00:36]} {[%emt 00:00:31]} Rxg2 {[%clk 00:03:39]}
{[%emt 00:01:57]} 39. Ke3 {[%clk 00:01:01]} {[%emt 00:00:05]} Kd6 {[%clk
00:03:01]} {[%emt 00:01:09]} 40. Rxh4 {[%clk 00:01:23]} {[%emt 00:00:07]} Rg7
{[%clk 00:02:07]} {[%emt 00:01:23]} 41. Ke4 {[%emt 00:00:13]} Ke5+ 1/2-1/2

[Event "Schack-SM 2024: Sverigemastarklassen"]
[Site "Fortnox Arena, Hejaregatan 5, Vaxjo, Sweden"]
[Date "2024.07.04"]
[Round "6.2"]
[White "Galperin, Platon"]
[Black "Semcesen, Daniel"]
[Result "1-0"]
[TimeControl "90 minutes for 40 moves + 30 minutes for the rest of the game + 30 seconds per move from move one."]
[WhiteTitle "GM"]
[BlackTitle "GM"]
[WhiteElo "2551"]
[BlackElo "2451"]

1. e4 {[%clk 01:30:57]} {[%emt 00:00:03]} e5 {[%clk 01:30:51]} {[%emt
00:00:09]} 2. Nf3 {[%clk 01:31:22]} {[%emt 00:00:06]} Nc6 {[%clk 01:31:14]}
{[%emt 00:00:07]} 3. Bb5 {[%clk 01:31:49]} {[%emt 00:00:03]} a6 {[%clk
01:30:54]} {[%emt 00:00:49]} 4. Ba4 {[%clk 01:31:47]} {[%emt 00:00:31]} Nf6
{[%clk 01:31:02]} {[%emt 00:00:22]} 5. Nc3 {[%clk 01:29:29]} {[%emt 00:02:49]}
d6 {[%clk 01:27:02]} {[%emt 00:04:31]} 6. Bxc6+ {[%clk 01:25:34]} {[%emt
00:04:24]} bxc6 {[%clk 01:27:24]} {[%emt 00:00:07]} 7. d4 {[%clk 01:26:01]}
{[%emt 00:00:04]} exd4 {[%clk 01:27:01]} {[%emt 00:00:52]} 8. Nxd4 {[%clk
01:26:08]} {[%emt 00:00:24]} Bd7 {[%clk 01:25:49]} {[%emt 00:01:41]} 9. O-O
{[%clk 01:26:19]} {[%emt 00:00:19]} Be7 {[%clk 01:25:41]} {[%emt 00:00:39]} 10.
Qf3 {[%clk 01:26:11]} {[%emt 00:00:38]} c5 {[%clk 01:22:14]} {[%emt 00:03:57]}
11. Nf5 {[%clk 01:25:07]} {[%emt 00:01:34]} Bxf5 {[%clk 01:18:34]} {[%emt
00:04:08]} 12. Qxf5 {[%clk 01:25:33]} {[%emt 00:00:05]} O-O {[%clk 01:18:08]}
{[%emt 00:00:55]} 13. b3 {[%clk 01:25:57]} {[%emt 00:00:06]} Re8 {[%clk
01:13:03]} {[%emt 00:05:36]} 14. Bb2 {[%clk 01:22:04]} {[%emt 00:04:23]} Bf8
{[%clk 01:09:23]} {[%emt 00:04:11]} 15. Rae1 {[%clk 01:19:32]} {[%emt
00:03:00]} g6 {[%clk 01:04:32]} {[%emt 00:05:21]} 16. Qf3 {[%clk 01:19:53]}
{[%emt 00:00:10]} Bg7 {[%clk 01:03:59]} {[%emt 00:01:02]} 17. Na4 {[%clk
01:20:16]} {[%emt 00:00:08]} Nd7 {[%clk 01:01:51]} {[%emt 00:02:37]} 18. Bxg7
{[%clk 01:20:26]} {[%emt 00:00:21]} Kxg7 {[%clk 01:02:16]} {[%emt 00:00:05]} 19.
Qc3+ {[%clk 01:20:51]} {[%emt 00:00:05]} f6 {[%clk 00:56:00]} {[%emt 00:06:45]}
20. Re3 {[%clk 01:20:07]} {[%emt 00:01:15]} Re6 {[%clk 00:53:47]} {[%emt
00:02:41]} 21. Rfe1 {[%clk 01:19:29]} {[%emt 00:01:09]} Qe7 {[%clk 00:50:51]}
{[%emt 00:03:26]} 22. Qa5 {[%clk 01:19:54]} {[%emt 00:00:05]} Ne5 {[%clk
00:50:52]} {[%emt 00:00:28]} 23. Nc3 {[%clk 01:19:40]} {[%emt 00:00:44]} c6
{[%clk 00:47:23]} {[%emt 00:03:59]} 24. h3 {[%clk 01:15:48]} {[%emt 00:04:22]}
Qb7 {[%clk 00:45:48]} {[%emt 00:02:05]} 25. Ne2 {[%clk 01:10:19]} {[%emt
00:05:59]} Rae8 {[%clk 00:45:24]} {[%emt 00:00:54]} 26. Qd2 {[%clk 01:10:01]}
{[%emt 00:00:48]} Nf7 {[%clk 00:45:02]} {[%emt 00:00:53]} 27. Nf4 {[%clk
01:10:25]} {[%emt 00:00:06]} Re5 {[%clk 00:44:43]} {[%emt 00:00:49]} 28. Nd3
{[%clk 01:10:12]} {[%emt 00:00:42]} R5e6 {[%clk 00:44:09]} {[%emt 00:01:04]} 29.
h4 {[%clk 01:09:49]} {[%emt 00:00:53]} Qc7 {[%clk 00:42:38]} {[%emt 00:02:01]}
30. f4 {[%clk 01:06:09]} {[%emt 00:04:10]} Qe7 {[%clk 00:36:06]} {[%emt
00:07:02]} 31. h5 {[%clk 01:00:03]} {[%emt 00:06:35]} Qa7 {[%clk 00:21:34]}
{[%emt 00:15:02]} 32. hxg6 {[%clk 00:55:34]} {[%emt 00:04:58]} hxg6 {[%clk
00:21:33]} {[%emt 00:00:33]} 33. c4 {[%clk 00:54:25]} {[%emt 00:01:39]} Qe7
{[%clk 00:18:30]} {[%emt 00:03:33]} 34. a3 {[%clk 00:46:43]} {[%emt 00:08:11]}
Qd8 {[%clk 00:15:18]} {[%emt 00:03:43]} 35. Qf2 {[%clk 00:37:27]} {[%emt
00:09:45]} R6e7 {[%clk 00:12:30]} {[%emt 00:03:18]} 36. Qg3 {[%clk 00:32:40]}
{[%emt 00:05:17]} Qd7 {[%clk 00:07:23]} {[%emt 00:05:38]} 37. b4 {[%clk
00:25:47]} {[%emt 00:07:24]} cxb4 {[%clk 00:06:01]} {[%emt 00:01:51]} 38. axb4
{[%clk 00:26:14]} {[%emt 00:00:03]} f5 {[%clk 00:02:32]} {[%emt 00:03:59]} 39.
Nf2 {[%clk 00:25:21]} {[%emt 00:01:22]} Nh6 {[%clk 00:00:49]} {[%emt 00:02:14]}
40. R3e2 {[%clk 00:25:41]} {[%emt 00:00:09]} Kh7 {[%clk 00:00:37]} {[%emt
00:00:42]} 41. Qc3 {[%clk 00:20:22]} {[%emt 00:05:48]} Kg8 {[%clk 00:26:37]}
{[%emt 00:04:32]} 42. Re3 {[%clk 00:45:27]} {[%emt 00:05:24]} Re6 {[%clk
00:22:46]} {[%emt 00:04:22]} 43. c5 {[%clk 00:30:18]} {[%emt 00:15:39]} fxe4
{[%clk 00:08:41]} {[%emt 00:14:34]} 44. cxd6 {[%clk 00:29:50]} {[%emt
00:00:58]} Nf5 {[%clk 00:08:50]} {[%emt 00:00:22]} 45. Rxe4 {[%clk 00:30:12]}
{[%emt 00:00:07]} Nxd6 {[%clk 00:08:47]} {[%emt 00:00:32]} 46. Rxe6 {[%clk
00:30:31]} {[%emt 00:00:11]} Rxe6 {[%clk 00:09:06]} {[%emt 00:00:12]} 47. Qb3
{[%clk 00:30:58]} {[%emt 00:00:01]} Kf7 {[%clk 00:09:22]} {[%emt 00:00:14]} 48.
Nd3 {[%clk 00:25:33]} {[%emt 00:05:54]} Kf6 {[%clk 00:06:15]} {[%emt 00:03:38]}
49. Qc3+ {[%clk 00:25:40]} {[%emt 00:00:24]} Kf5 {[%clk 00:03:05]} {[%emt
00:03:40]} 50. Re5+ {[%clk 00:26:02]} {[%emt 00:00:07]} Kg4 {[%clk 00:03:27]}
{[%emt 00:00:09]} 51. Nf2+ {[%clk 00:26:22]} {[%emt 00:00:10]} Kh4 {[%clk
00:03:49]} {[%emt 00:00:06]} 52. Qh3# {[%clk 00:26:44]} {[%emt 00:00:08]} 1-0

[Event "Schack-SM 2024: Sverigemastarklassen"]
[Site "Fortnox Arena, Hejaregatan 5, Vaxjo, Sweden"]
[Date "2024.07.04"]
[Round "6.3"]
[White "Seo, Jung Min"]
[Black "Pantzar, Milton"]
[Result "1/2-1/2"]
[TimeControl "90 minutes for 40 moves + 30 minutes for the rest of the game + 30 seconds per move from move one."]
[WhiteTitle "IM"]
[BlackTitle "IM"]
[WhiteElo "2442"]
[BlackElo "2480"]

1. e4 {[%clk 01:30:58]} {[%emt 01:43:54]} e5 {[%clk 01:30:47]} {[%emt
00:00:14]} 2. Nf3 {[%clk 01:31:26]} {[%emt 00:00:03]} Nc6 {[%clk 01:30:52]}
{[%emt 00:00:26]} 3. Bb5 {[%clk 01:31:41]} {[%emt 00:00:15]} Bc5 {[%clk
01:31:02]} {[%emt 00:00:20]} 4. O-O {[%clk 01:16:46]} {[%emt 00:15:24]} d6
{[%clk 01:30:31]} {[%emt 00:01:01]} 5. d4 {[%clk 01:14:37]} {[%emt 00:02:40]}
exd4 {[%clk 01:30:17]} {[%emt 00:00:42]} 6. Nxd4 {[%clk 01:13:53]} {[%emt
00:01:14]} Nge7 {[%clk 01:29:22]} {[%emt 00:01:26]} 7. Be3 {[%clk 01:00:35]}
{[%emt 00:13:48]} O-O {[%clk 01:27:19]} {[%emt 00:02:32]} 8. c3 {[%clk
00:58:19]} {[%emt 00:02:46]} Bb6 {[%clk 01:17:38]} {[%emt 00:10:12]} 9. Re1
{[%clk 00:53:09]} {[%emt 00:05:40]} f5 {[%clk 01:05:40]} {[%emt 00:12:28]} 10.
Nxf5 {[%clk 00:50:04]} {[%emt 00:03:34]} Nxf5 {[%clk 01:04:33]} {[%emt
00:01:37]} 11. exf5 {[%clk 00:49:41]} {[%emt 00:00:53]} Bxf5 {[%clk 01:02:19]}
{[%emt 00:02:44]} 12. Qd5+ {[%clk 00:42:41]} {[%emt 00:07:30]} Kh8 {[%clk
01:02:41]} {[%emt 00:00:07]} 13. Bxc6 {[%clk 00:35:12]} {[%emt 00:08:00]} bxc6
{[%clk 01:03:03]} {[%emt 00:00:09]} 14. Qxc6 {[%clk 00:35:40]} {[%emt
00:00:02]} Rb8 {[%clk 01:00:47]} {[%emt 00:02:46]} 15. b3 {[%clk 00:33:51]}
{[%emt 00:02:18]} Bc8 {[%clk 00:54:46]} {[%emt 00:06:31]} 16. Nd2 {[%clk
00:28:04]} {[%emt 00:06:19]} Bb7 {[%clk 00:54:06]} {[%emt 00:01:09]} 17. Qc4
{[%clk 00:28:10]} {[%emt 00:00:22]} Qf6 {[%clk 00:39:31]} {[%emt 00:15:07]} 18.
Bxb6 {[%clk 00:19:19]} {[%emt 00:09:22]} cxb6 {[%clk 00:32:57]} {[%emt
00:07:03]} 19. f3 {[%clk 00:18:05]} {[%emt 00:01:44]} Rfc8 {[%clk 00:32:05]}
{[%emt 00:01:22]} 20. Qd4 {[%clk 00:17:02]} {[%emt 00:01:33]} Rxc3 {[%clk
00:32:00]} {[%emt 00:00:34]} 21. Qxf6 {[%clk 00:16:39]} {[%emt 00:00:54]} gxf6
{[%clk 00:32:28]} {[%emt 00:00:02]} 22. Nc4 {[%clk 00:16:29]} {[%emt 00:00:39]}
Rg8 {[%clk 00:28:47]} {[%emt 00:04:11]} 23. Nxd6 {[%clk 00:15:57]} {[%emt
00:01:02]} Bxf3 {[%clk 00:27:51]} {[%emt 00:01:28]} 24. Nf7+ {[%clk 00:12:47]}
{[%emt 00:03:39]} Kg7 {[%clk 00:27:38]} {[%emt 00:00:43]} 25. Nd6 {[%clk
00:13:12]} {[%emt 00:00:05]} Kh8 {[%clk 00:16:57]} {[%emt 00:11:10]} 26. Nf7+
{[%clk 00:12:56]} {[%emt 00:00:46]} Kg7 {[%clk 00:17:16]} {[%emt 00:00:12]} 27.
Nd6 {[%clk 00:13:24]} {[%emt 00:00:01]} Kh8 {[%clk 00:17:23]} {[%emt 00:00:22]}
28. Nf7+ {[%clk 00:10:26]} {[%emt 00:03:28]} Kg7 {[%clk 00:17:33]} {[%emt
00:00:22]} 29. Nd6 {[%clk 00:10:54]} {[%emt 00:00:01]} 1/2-1/2